[Event "*** Titled Tuesday 3|2 Blitz (Early)"]
[Site "Chess.com"]
[Date "2017.01.03"]
[Round "1"]
[White "Izoria123"]
[Black "Mazetovic"]
[Result "1-0"]
[WhiteElo "2690"]
[BlackElo "2453"]
[TimeControl "180+2"]
[EndTime "11:06:56 PST"]
[Termination "Izoria123 won by resignation"]

1. Nf3 {[%clk 0:03:02]} 1... Nf6 {[%clk 0:02:59.8]} 2. c4 {[%clk 0:03:02.7]}
2... g6 {[%clk 0:03:00.2]} 3. g3 {[%clk 0:03:03.1]} 3... Bg7 {[%clk 0:03:00.6]}
4. Bg2 {[%clk 0:03:05]} 4... O-O {[%clk 0:02:59.2]} 5. O-O {[%clk 0:03:06.6]}
5... d6 {[%clk 0:02:59]} 6. Nc3 {[%clk 0:03:06.9]} 6... c6 {[%clk 0:02:58.5]} 7.
d4 {[%clk 0:03:04.7]} 7... Qa5 {[%clk 0:02:58.6]} 8. e4 {[%clk 0:03:01.9]} 8...
Qh5 {[%clk 0:02:57.4]} 9. Ng5 {[%clk 0:02:54.2]} 9... Qxd1 {[%clk 0:02:57.3]}
10. Rxd1 {[%clk 0:02:56.1]} 10... e5 {[%clk 0:02:57.4]} 11. d5 {[%clk
0:02:53.5]} 11... c5 {[%clk 0:02:56.5]} 12. Bh3 {[%clk 0:02:32.5]} 12... Bxh3
{[%clk 0:02:44.7]} 13. Nxh3 {[%clk 0:02:34.4]} 13... Na6 {[%clk 0:02:44.6]} 14.
a3 {[%clk 0:02:21.4]} 14... Kh8 {[%clk 0:02:28.4]} 15. f3 {[%clk 0:02:19.7]}
15... Ng8 {[%clk 0:02:28.5]} 16. Nb5 {[%clk 0:02:18.6]} 16... Rfd8 {[%clk
0:02:19.9]} 17. Ng5 {[%clk 0:02:13.9]} 17... Rd7 {[%clk 0:02:19.5]} 18. Nxd6
{[%clk 0:02:10.3]} 18... Rf8 {[%clk 0:02:19.2]} 19. Nb5 {[%clk 0:02:09.9]} 19...
h6 {[%clk 0:02:16.8]} 20. Nh3 {[%clk 0:02:09.5]} 20... b6 {[%clk 0:02:18.3]} 21.
Nf2 {[%clk 0:02:07.4]} 21... Ne7 {[%clk 0:02:15.7]} 22. Be3 {[%clk 0:02:03]}
22... Nc8 {[%clk 0:02:14.4]} 23. Nd3 {[%clk 0:02:02.5]} 23... Nd6 {[%clk
0:02:10.8]} 24. Nxd6 {[%clk 0:02:02.6]} 24... Rxd6 {[%clk 0:02:12]} 25. b4
{[%clk 0:02:04.5]} 25... Rc8 {[%clk 0:02:11.7]} 26. bxc5 {[%clk 0:02:03.4]}
26... Nxc5 {[%clk 0:02:12.5]} 27. Nxc5 {[%clk 0:02:03]} 27... bxc5 {[%clk
0:02:13.2]} 28. Rdb1 {[%clk 0:02:04.9]} 28... Rd7 {[%clk 0:02:11]} 29. Rb5
{[%clk 0:02:04.2]} 29... Bf8 {[%clk 0:02:11.9]} 30. Rab1 {[%clk 0:02:05]} 30...
Kg7 {[%clk 0:02:06.7]} 31. Kf2 {[%clk 0:02:02.7]} 31... f5 {[%clk 0:02:06.2]}
32. Ke2 {[%clk 0:02:01.8]} 32... Rcc7 {[%clk 0:02:03.2]} 33. Kd3 {[%clk
0:01:58.3]} 33... Bd6 {[%clk 0:02:04]} 34. Rb8 {[%clk 0:01:53.2]} 34... Rf7
{[%clk 0:01:59.4]} 35. a4 {[%clk 0:01:48.8]} 35... h5 {[%clk 0:01:51.1]} 36. Rd8
{[%clk 0:01:44.7]} 36... Rfd7 {[%clk 0:01:50]} 37. Rbb8 {[%clk 0:01:42.2]} 37...
Kf7 {[%clk 0:01:40.3]} 38. Rh8 {[%clk 0:01:35.4]} 38... Kf6 {[%clk 0:01:34]} 39.
exf5 {[%clk 0:01:30]} 39... gxf5 {[%clk 0:01:33.9]} 40. Rxh5 {[%clk 0:01:27.5]}
40... e4+ {[%clk 0:01:28.3]} 41. Ke2 {[%clk 0:01:23.9]} 41... Rg7 {[%clk
0:01:20]} 42. Re8 {[%clk 0:01:21.8]} 42... Kf7 {[%clk 0:01:19]} 43. Re6 {[%clk
0:01:20.9]} 43... exf3+ {[%clk 0:01:17.7]} 44. Kxf3 {[%clk 0:01:22.8]} 44... Be7
{[%clk 0:01:18]} 45. Rxf5+ {[%clk 0:01:23.4]} 45... Kg8 {[%clk 0:01:19.1]} 1-0

[Event "*** Titled Tuesday 3|2 Blitz (Early)"]
[Site "Chess.com"]
[Date "2017.01.03"]
[Round "1"]
[White "Maitreia"]
[Black "AdrianaNikolova"]
[Result "1-0"]
[WhiteElo "2479"]
[BlackElo "2249"]
[TimeControl "180+2"]
[EndTime "11:07:15 PST"]
[Termination "Maitreia won on time"]

1. c4 {[%clk 0:03:02]} 1... e5 {[%clk 0:03:00.1]} 2. g3 {[%clk 0:03:02.8]} 2...
Nf6 {[%clk 0:02:56]} 3. Bg2 {[%clk 0:03:03.8]} 3... d5 {[%clk 0:02:57.1]} 4.
cxd5 {[%clk 0:03:05.7]} 4... Nxd5 {[%clk 0:02:58.5]} 5. Nc3 {[%clk 0:03:07.4]}
5... Nb6 {[%clk 0:02:59.2]} 6. Nf3 {[%clk 0:03:08.3]} 6... Nc6 {[%clk 0:03:00]}
7. O-O {[%clk 0:03:09.7]} 7... Be7 {[%clk 0:03:01.6]} 8. Rb1 {[%clk 0:03:10.7]}
8... O-O {[%clk 0:03:02.9]} 9. b4 {[%clk 0:03:09.3]} 9... f6 {[%clk 0:02:41.7]}
10. b5 {[%clk 0:03:09.8]} 10... Nd4 {[%clk 0:02:42.2]} 11. d3 {[%clk 0:03:11.4]}
11... Be6 {[%clk 0:02:38.6]} 12. Nd2 {[%clk 0:03:12.2]} 12... Nd5 {[%clk
0:02:31]} 13. Bxd5 {[%clk 0:03:10.1]} 13... Bxd5 {[%clk 0:02:32.9]} 14. e3
{[%clk 0:03:11.3]} 14... Bf7 {[%clk 0:01:49.7]} 15. exd4 {[%clk 0:03:10.2]}
15... exd4 {[%clk 0:01:51.6]} 16. Ne2 {[%clk 0:02:55.9]} 16... Bxa2 {[%clk
0:01:51.3]} 17. Bb2 {[%clk 0:02:54.4]} 17... Bxb1 {[%clk 0:01:51.1]} 18. Qxb1
{[%clk 0:02:56.3]} 18... Bc5 {[%clk 0:01:44.5]} 19. Nb3 {[%clk 0:02:51.5]} 19...
Bb6 {[%clk 0:01:42.7]} 20. Bxd4 {[%clk 0:02:44.2]} 20... Qd5 {[%clk 0:01:44.2]}
21. Bxb6 {[%clk 0:02:32.6]} 21... axb6 {[%clk 0:01:46.1]} 22. Nbd4 {[%clk
0:02:33.6]} 22... Ra3 {[%clk 0:01:32.5]} 23. Rc1 {[%clk 0:02:29.7]} 23... Qd6
{[%clk 0:01:21.2]} 24. Nf5 {[%clk 0:02:24.5]} 24... Qd7 {[%clk 0:01:02.6]} 25.
Ne3 {[%clk 0:02:17.4]} 25... Rxd3 {[%clk 0:00:59.8]} 26. Rxc7 {[%clk 0:02:17.8]}
26... Qxc7 {[%clk 0:00:53.9]} 27. Qxd3 {[%clk 0:02:18.4]} 27... Rd8 {[%clk
0:00:55.8]} 28. Qb3+ {[%clk 0:02:16.2]} 28... Qf7 {[%clk 0:00:52.1]} 29. Qc2
{[%clk 0:02:00.3]} 29... g6 {[%clk 0:00:46.3]} 30. h4 {[%clk 0:02:00.8]} 30...
Qd7 {[%clk 0:00:34.8]} 31. Qb3+ {[%clk 0:01:59.7]} 31... Qf7 {[%clk 0:00:34.7]}
32. Qb2 {[%clk 0:02:00.8]} 32... Re8 {[%clk 0:00:32]} 33. Nf4 {[%clk 0:02:01.5]}
33... Re5 {[%clk 0:00:29.6]} 34. Ng4 {[%clk 0:01:42.2]} 34... Rf5 {[%clk
0:00:26]} 35. Nh6+ {[%clk 0:01:42]} 1-0

[Event "*** Titled Tuesday 3|2 Blitz (Early)"]
[Site "Chess.com"]
[Date "2017.01.03"]
[Round "1"]
[White "Dr-Bassem"]
[Black "Krutoy123"]
[Result "0-1"]
[WhiteElo "2637"]
[BlackElo "2395"]
[TimeControl "180+2"]
[EndTime "11:07:22 PST"]
[Termination "Krutoy123 won by resignation"]

1. e4 {[%clk 0:03:02]} 1... c5 {[%clk 0:02:59.8]} 2. Nf3 {[%clk 0:03:02.4]} 2...
e6 {[%clk 0:03:00.1]} 3. d3 {[%clk 0:03:02.3]} 3... Nc6 {[%clk 0:02:58.5]} 4. g3
{[%clk 0:02:59.2]} 4... g6 {[%clk 0:02:58.9]} 5. Bg2 {[%clk 0:03:00.4]} 5... Bg7
{[%clk 0:02:59.6]} 6. O-O {[%clk 0:03:02.3]} 6... Nge7 {[%clk 0:02:56.1]} 7. Re1
{[%clk 0:03:03.2]} 7... d6 {[%clk 0:02:49.8]} 8. c3 {[%clk 0:03:03.9]} 8... O-O
{[%clk 0:02:46]} 9. d4 {[%clk 0:03:05]} 9... b6 {[%clk 0:02:42.8]} 10. h4 {[%clk
0:03:04.8]} 10... Bb7 {[%clk 0:02:36.7]} 11. h5 {[%clk 0:03:05.5]} 11... Qd7
{[%clk 0:02:32]} 12. h6 {[%clk 0:03:06.3]} 12... Bh8 {[%clk 0:02:30.6]} 13. Bg5
{[%clk 0:02:58.3]} 13... f6 {[%clk 0:02:27.5]} 14. Be3 {[%clk 0:02:57.4]} 14...
cxd4 {[%clk 0:02:24.8]} 15. Nxd4 {[%clk 0:02:46.9]} 15... Nxd4 {[%clk
0:02:17.7]} 16. cxd4 {[%clk 0:02:48.4]} 16... d5 {[%clk 0:02:11.3]} 17. Nc3
{[%clk 0:02:41.7]} 17... dxe4 {[%clk 0:02:07.6]} 18. Nxe4 {[%clk 0:02:43.6]}
18... Rad8 {[%clk 0:02:02.8]} 19. Rc1 {[%clk 0:02:35]} 19... Rfe8 {[%clk
0:01:57.1]} 20. Bf4 {[%clk 0:02:22]} 20... Nd5 {[%clk 0:01:54.9]} 21. Bd2 {[%clk
0:02:07.5]} 21... f5 {[%clk 0:01:52]} 22. Nc3 {[%clk 0:02:00.3]} 22... Nb4
{[%clk 0:01:51.6]} 23. Bg5 {[%clk 0:01:44.6]} 23... Bxg2 {[%clk 0:01:46.8]} 24.
Bxd8 {[%clk 0:01:44.5]} 24... Ba8 {[%clk 0:01:39.3]} 25. Bg5 {[%clk 0:01:43.5]}
25... Bxd4 {[%clk 0:01:35.2]} 26. a3 {[%clk 0:01:39.6]} 26... Nd3 {[%clk
0:01:32.1]} 27. Be3 {[%clk 0:01:11.8]} 27... Qb7 {[%clk 0:01:28.5]} 28. Kf1
{[%clk 0:00:23.4]} 28... Bxe3 {[%clk 0:01:24.7]} 29. Rxe3 {[%clk 0:00:17.4]}
29... Qh1+ {[%clk 0:01:24.8]} 30. Ke2 {[%clk 0:00:17.4]} 30... Nxc1+ {[%clk
0:01:25.4]} 31. Kd2 {[%clk 0:00:18.7]} 31... Rd8+ {[%clk 0:01:23.3]} 0-1

[Event "*** Titled Tuesday 3|2 Blitz (Early)"]
[Site "Chess.com"]
[Date "2017.01.03"]
[Round "1"]
[White "Mischuk_D"]
[Black "rst2003"]
[Result "1-0"]
[WhiteElo "2441"]
[BlackElo "2100"]
[TimeControl "180+2"]
[EndTime "11:07:31 PST"]
[Termination "Mischuk_D won by resignation"]

1. d4 {[%clk 0:03:02]} 1... Nf6 {[%clk 0:03:00.1]} 2. c4 {[%clk 0:03:02.7]} 2...
g6 {[%clk 0:03:00.8]} 3. Nc3 {[%clk 0:03:03.1]} 3... Bg7 {[%clk 0:03:01.5]} 4.
e4 {[%clk 0:03:04.1]} 4... d6 {[%clk 0:03:02.2]} 5. Be2 {[%clk 0:03:05.4]} 5...
O-O {[%clk 0:03:02.9]} 6. Bg5 {[%clk 0:03:06.2]} 6... Na6 {[%clk 0:03:01.8]} 7.
f4 {[%clk 0:03:05.8]} 7... c6 {[%clk 0:03:02.4]} 8. Bf3 {[%clk 0:03:07]} 8...
Nc7 {[%clk 0:03:03.2]} 9. Nge2 {[%clk 0:03:05.3]} 9... Ne6 {[%clk 0:03:02.1]}
10. Bh4 {[%clk 0:03:04.4]} 10... a6 {[%clk 0:02:39.7]} 11. O-O {[%clk
0:03:04.2]} 11... Rb8 {[%clk 0:02:40.3]} 12. e5 {[%clk 0:03:05]} 12... dxe5
{[%clk 0:02:37.4]} 13. dxe5 {[%clk 0:03:06]} 13... Nd7 {[%clk 0:02:37.7]} 14.
Kh1 {[%clk 0:03:04]} 14... g5 {[%clk 0:02:28.9]} 15. fxg5 {[%clk 0:02:55.2]}
15... Nxe5 {[%clk 0:02:28.7]} 16. Qc2 {[%clk 0:02:34.1]} 16... Nxc4 {[%clk
0:02:19]} 17. Rfd1 {[%clk 0:02:31.9]} 17... Ne3 {[%clk 0:02:09.4]} 18. Rxd8
{[%clk 0:02:32.3]} 18... Nxc2 {[%clk 0:02:09.5]} 19. Rxf8+ {[%clk 0:02:33.3]}
19... Kxf8 {[%clk 0:02:10.1]} 20. Rd1 {[%clk 0:02:28.7]} 20... Ncd4 {[%clk
0:02:10.1]} 21. Bg3 {[%clk 0:02:28.1]} 21... Ra8 {[%clk 0:02:01.5]} 22. h4
{[%clk 0:02:29]} 22... Bd7 {[%clk 0:01:55.1]} 23. Nxd4 {[%clk 0:02:27.2]} 23...
Nxd4 {[%clk 0:01:55.2]} 24. Ne2 {[%clk 0:02:28.2]} 24... Nxe2 {[%clk 0:01:50.6]}
25. Bxe2 {[%clk 0:02:28.2]} 25... Be6 {[%clk 0:01:50.1]} 26. b3 {[%clk
0:02:28.8]} 26... Ke8 {[%clk 0:01:49.3]} 27. Bc7 {[%clk 0:02:29.2]} 27... Rc8
{[%clk 0:01:45.6]} 28. Bb6 {[%clk 0:02:29.7]} 28... c5 {[%clk 0:01:45.7]} 29.
Bf3 {[%clk 0:02:30.9]} 29... Bd4 {[%clk 0:01:43.4]} 30. Bxb7 {[%clk 0:02:28.3]}
30... Rb8 {[%clk 0:01:43]} 31. Bc6+ {[%clk 0:02:29.4]} 31... Kf8 {[%clk
0:01:40]} 32. Ba5 {[%clk 0:02:30.2]} 32... Bf2 {[%clk 0:01:33.7]} 33. Be1 {[%clk
0:02:28.3]} 33... Bxe1 {[%clk 0:01:29.7]} 34. Rxe1 {[%clk 0:02:29.2]} 34... c4
{[%clk 0:01:30.4]} 35. bxc4 {[%clk 0:02:24.9]} 35... Bxc4 {[%clk 0:01:31.6]} 36.
a3 {[%clk 0:02:23.6]} 36... Rb3 {[%clk 0:01:26]} 37. Rc1 {[%clk 0:02:22.7]}
37... Be6 {[%clk 0:01:24.9]} 38. Be4 {[%clk 0:02:20]} 38... Kg7 {[%clk
0:01:22.8]} 39. Ra1 {[%clk 0:02:20.3]} 39... Re3 {[%clk 0:01:18.9]} 40. Bf3
{[%clk 0:02:21.3]} 40... Rc3 {[%clk 0:01:16.4]} 41. Kh2 {[%clk 0:02:22.2]} 41...
h6 {[%clk 0:01:11.8]} 42. gxh6+ {[%clk 0:02:22.2]} 42... Kxh6 {[%clk 0:01:12.7]}
43. Kg3 {[%clk 0:02:23.1]} 43... Bd5 {[%clk 0:01:12.5]} 44. a4 {[%clk
0:02:21.8]} 44... Bxf3 {[%clk 0:01:12.7]} 45. gxf3 {[%clk 0:02:23.7]} 45... Rc4
{[%clk 0:01:12.9]} 46. a5 {[%clk 0:02:23.8]} 46... e5 {[%clk 0:01:10.6]} 47. Rb1
{[%clk 0:02:22.8]} 47... Rc6 {[%clk 0:01:05.4]} 48. Rb6 {[%clk 0:02:23.1]} 48...
Rg6+ {[%clk 0:01:04.1]} 49. Kh3 {[%clk 0:02:09.6]} 49... Kh5 {[%clk 0:01:01.6]}
50. Rb8 {[%clk 0:02:08.2]} 50... Rg1 {[%clk 0:00:57.8]} 51. Rh8+ {[%clk
0:02:08.3]} 51... Kg6 {[%clk 0:00:51.4]} 52. Rg8+ {[%clk 0:02:09.1]} 52... Kf6
{[%clk 0:00:52.3]} 53. Rxg1 {[%clk 0:02:11]} 53... Ke6 {[%clk 0:00:53.3]} 54. h5
{[%clk 0:02:11.8]} 54... Kd5 {[%clk 0:00:53.8]} 55. h6 {[%clk 0:02:12.7]} 55...
Kc5 {[%clk 0:00:55.2]} 56. h7 {[%clk 0:02:13.7]} 56... Kb5 {[%clk 0:00:56.7]}
57. h8=Q {[%clk 0:02:14.7]} 57... Kxa5 {[%clk 0:00:58.3]} 58. Qxe5+ {[%clk
0:02:15.3]} 58... Kb4 {[%clk 0:01:00.2]} 59. Rd1 {[%clk 0:02:13.4]} 1-0

[Event "*** Titled Tuesday 3|2 Blitz (Early)"]
[Site "Chess.com"]
[Date "2017.01.03"]
[Round "1"]
[White "Quiet_Desperation"]
[Black "kleinebeer98"]
[Result "0-1"]
[WhiteElo "2372"]
[BlackElo "1648"]
[TimeControl "180+2"]
[EndTime "11:07:37 PST"]
[Termination "kleinebeer98 won by resignation"]

1. e4 {[%clk 0:03:01.9]} 1... e5 {[%clk 0:02:59.7]} 2. Nf3 {[%clk 0:03:01.7]}
2... Nc6 {[%clk 0:02:41.6]} 3. Bb5 {[%clk 0:02:51.1]} 3... f5 {[%clk 0:02:19.9]}
4. d3 {[%clk 0:02:50.7]} 4... fxe4 {[%clk 0:02:20]} 5. dxe4 {[%clk 0:02:51.5]}
5... Nf6 {[%clk 0:02:21]} 6. Nc3 {[%clk 0:02:52.5]} 6... Bb4 {[%clk 0:02:17.3]}
7. Bc4 {[%clk 0:02:51.9]} 7... Nxe4 {[%clk 0:01:53.8]} 8. Qd5 {[%clk 0:02:46.8]}
8... Nd6 {[%clk 0:01:45]} 9. O-O {[%clk 0:02:44.2]} 9... Qf6 {[%clk 0:01:34.9]}
10. Bg5 {[%clk 0:02:34]} 10... Qf7 {[%clk 0:01:27.8]} 11. Qxd6 {[%clk
0:02:26.9]} 11... Bxd6 {[%clk 0:01:21.4]} 12. Bxf7+ {[%clk 0:02:27.2]} 12...
Kxf7 {[%clk 0:01:23.3]} 13. Nd5 {[%clk 0:02:28.4]} 13... h6 {[%clk 0:01:23]} 14.
Be3 {[%clk 0:02:28.4]} 14... Ne7 {[%clk 0:01:20.8]} 15. Rad1 {[%clk 0:02:27]}
15... Re8 {[%clk 0:01:08]} 16. c4 {[%clk 0:02:26.9]} 16... Nxd5 {[%clk
0:00:51.4]} 17. Rxd5 {[%clk 0:02:25.1]} 17... b6 {[%clk 0:00:44.9]} 18. Rfd1
{[%clk 0:01:48.2]} 18... Bb7 {[%clk 0:00:43.9]} 19. Rxd6 {[%clk 0:01:49.8]}
19... cxd6 {[%clk 0:00:45.8]} 20. Rxd6 {[%clk 0:01:50.7]} 20... Bc6 {[%clk
0:00:46.2]} 21. Nd2 {[%clk 0:01:45]} 21... Re6 {[%clk 0:00:40.9]} 22. Rd3 {[%clk
0:01:38.9]} 22... Rd8 {[%clk 0:00:37.7]} 23. h3 {[%clk 0:01:18.1]} 23... d5
{[%clk 0:00:34.3]} 24. cxd5 {[%clk 0:01:18.9]} 24... Rxd5 {[%clk 0:00:36.2]} 25.
Ra3 {[%clk 0:01:18.3]} 25... Re7 {[%clk 0:00:32.3]} 26. Nc4 {[%clk 0:01:09.9]}
26... Ke6 {[%clk 0:00:31.2]} 27. f4 {[%clk 0:01:02.9]} 27... e4 {[%clk
0:00:20.2]} 28. g4 {[%clk 0:01:02.2]} 28... Rd3 {[%clk 0:00:21.1]} 29. f5+
{[%clk 0:00:58]} 29... Kd5 {[%clk 0:00:20.8]} 30. b3 {[%clk 0:00:56.2]} 30...
Bb5 {[%clk 0:00:16.5]} 31. Bf4 {[%clk 0:00:47.2]} 31... Bxc4 {[%clk 0:00:17.3]}
32. bxc4+ {[%clk 0:00:48.3]} 32... Kxc4 {[%clk 0:00:19.2]} 33. Ra4+ {[%clk
0:00:47.1]} 33... Kb5 {[%clk 0:00:19.9]} 0-1

[Event "*** Titled Tuesday 3|2 Blitz (Early)"]
[Site "Chess.com"]
[Date "2017.01.03"]
[Round "1"]
[White "Jahonas"]
[Black "andretta"]
[Result "0-1"]
[WhiteElo "2160"]
[BlackElo "2451"]
[TimeControl "180+2"]
[EndTime "11:08:06 PST"]
[Termination "andretta won by resignation"]

1. d4 {[%clk 0:03:02]} 1... d5 {[%clk 0:02:58.8]} 2. c4 {[%clk 0:03:02.7]} 2...
dxc4 {[%clk 0:03:00.7]} 3. Nc3 {[%clk 0:03:02.3]} 3... a6 {[%clk 0:02:59]} 4. a4
{[%clk 0:03:02.5]} 4... Nc6 {[%clk 0:02:49.9]} 5. e3 {[%clk 0:02:59.9]} 5... Na5
{[%clk 0:02:44]} 6. Nf3 {[%clk 0:02:46.7]} 6... Nf6 {[%clk 0:02:38.4]} 7. Ne5
{[%clk 0:02:46.5]} 7... Be6 {[%clk 0:01:51.6]} 8. e4 {[%clk 0:02:43.2]} 8... Qd6
{[%clk 0:01:30.9]} 9. f4 {[%clk 0:02:39.1]} 9... Rd8 {[%clk 0:01:16.2]} 10. d5
{[%clk 0:02:35.3]} 10... Qc5 {[%clk 0:01:11.8]} 11. Qe2 {[%clk 0:02:27.3]} 11...
Bc8 {[%clk 0:01:06.5]} 12. Nxc4 {[%clk 0:02:25.4]} 12... Nxc4 {[%clk 0:01:03.1]}
13. Qxc4 {[%clk 0:02:25.6]} 13... e6 {[%clk 0:01:00.6]} 14. Qxc5 {[%clk
0:02:24.5]} 14... Bxc5 {[%clk 0:01:00.5]} 15. Bc4 {[%clk 0:02:11.9]} 15... exd5
{[%clk 0:00:57.1]} 16. Bxd5 {[%clk 0:01:43.3]} 16... O-O {[%clk 0:00:57.7]} 17.
Bb3 {[%clk 0:01:33.8]} 17... Nxe4 {[%clk 0:00:52.1]} 18. Nxe4 {[%clk 0:01:34.2]}
18... Rfe8 {[%clk 0:00:50.6]} 19. Bc2 {[%clk 0:01:33]} 19... Bf5 {[%clk
0:00:50.6]} 20. Bd2 {[%clk 0:01:24.1]} 20... Bxe4 {[%clk 0:00:51.3]} 21. O-O-O
{[%clk 0:01:24.1]} 21... Bxc2 {[%clk 0:00:52.1]} 22. Kxc2 {[%clk 0:01:24.5]}
22... Re2 {[%clk 0:00:53]} 23. Kc3 {[%clk 0:01:00.3]} 23... Bb4+ {[%clk
0:00:49.8]} 24. Kxb4 {[%clk 0:01:00.8]} 24... Rdxd2 {[%clk 0:00:50.7]} 25. Rxd2
{[%clk 0:01:01.8]} 25... Rxd2 {[%clk 0:00:52.6]} 26. b3 {[%clk 0:01:00.5]} 26...
Kf8 {[%clk 0:00:52.6]} 27. g3 {[%clk 0:01:00.3]} 27... Ke7 {[%clk 0:00:52.3]}
28. Kc3 {[%clk 0:00:59.8]} 28... Rd6 {[%clk 0:00:51.6]} 29. b4 {[%clk
0:00:56.8]} 29... Kd7 {[%clk 0:00:52.3]} 30. b5 {[%clk 0:00:57.4]} 30... axb5
{[%clk 0:00:52.5]} 31. axb5 {[%clk 0:00:59.3]} 31... b6 {[%clk 0:00:53.3]} 32.
Ra1 {[%clk 0:00:56.4]} 32... Re6 {[%clk 0:00:52.3]} 33. Kd3 {[%clk 0:00:55.4]}
33... Rd6+ {[%clk 0:00:52.9]} 34. Kc3 {[%clk 0:00:54.1]} 34... Rh6 {[%clk
0:00:53.3]} 35. Ra2 {[%clk 0:00:50.5]} 35... Rh5 {[%clk 0:00:51.1]} 36. Kc4
{[%clk 0:00:48.9]} 36... Rc5+ {[%clk 0:00:50.6]} 37. Kb4 {[%clk 0:00:49.9]}
37... Rc1 {[%clk 0:00:50.4]} 38. Rd2+ {[%clk 0:00:46.1]} 38... Ke7 {[%clk
0:00:50.8]} 39. Rd5 {[%clk 0:00:45.9]} 39... Rc2 {[%clk 0:00:49.4]} 40. Rh5
{[%clk 0:00:46.1]} 40... h6 {[%clk 0:00:49.5]} 41. g4 {[%clk 0:00:43.5]} 41...
Rg2 {[%clk 0:00:48.5]} 42. g5 {[%clk 0:00:44]} 42... hxg5 {[%clk 0:00:48.3]} 43.
fxg5 {[%clk 0:00:45]} 43... g6 {[%clk 0:00:49.4]} 44. Rh7 {[%clk 0:00:42]} 44...
Rxg5 {[%clk 0:00:49.8]} 0-1

[Event "*** Titled Tuesday 3|2 Blitz (Early)"]
[Site "Chess.com"]
[Date "2017.01.03"]
[Round "1"]
[White "Ilja_Semjonovs"]
[Black "RitvarsReimanis"]
[Result "0-1"]
[WhiteElo "2134"]
[BlackElo "2445"]
[TimeControl "180+2"]
[EndTime "11:08:22 PST"]
[Termination "RitvarsReimanis won by resignation"]

1. d4 {[%clk 0:03:02]} 1... Nf6 {[%clk 0:02:58.4]} 2. Nf3 {[%clk 0:03:02.3]}
2... e6 {[%clk 0:02:59.4]} 3. Bg5 {[%clk 0:03:02.7]} 3... d5 {[%clk 0:03:00.6]}
4. e3 {[%clk 0:03:03.3]} 4... Be7 {[%clk 0:03:00.7]} 5. Nbd2 {[%clk 0:03:02.9]}
5... h6 {[%clk 0:03:01.8]} 6. Bxf6 {[%clk 0:03:02.2]} 6... Bxf6 {[%clk
0:03:02.8]} 7. Bd3 {[%clk 0:03:03.9]} 7... O-O {[%clk 0:03:01.4]} 8. c3 {[%clk
0:03:05.3]} 8... b6 {[%clk 0:03:01.4]} 9. O-O {[%clk 0:03:05.4]} 9... Bb7 {[%clk
0:03:02.3]} 10. Qe2 {[%clk 0:03:06.4]} 10... c5 {[%clk 0:03:00.9]} 11. a3 {[%clk
0:03:06.4]} 11... Nc6 {[%clk 0:03:00.1]} 12. b4 {[%clk 0:03:06.5]} 12... e5
{[%clk 0:02:40.4]} 13. dxe5 {[%clk 0:02:47.9]} 13... Nxe5 {[%clk 0:02:40.9]} 14.
Nxe5 {[%clk 0:02:43.7]} 14... Bxe5 {[%clk 0:02:42.8]} 15. Rac1 {[%clk
0:02:42.2]} 15... Re8 {[%clk 0:02:22.8]} 16. Nf3 {[%clk 0:02:32.5]} 16... Bc7
{[%clk 0:02:08]} 17. Rfd1 {[%clk 0:02:20.4]} 17... Qf6 {[%clk 0:02:05.7]} 18.
Bb1 {[%clk 0:02:16.2]} 18... Rad8 {[%clk 0:01:53]} 19. bxc5 {[%clk 0:01:39.6]}
19... bxc5 {[%clk 0:01:51.7]} 20. Qc2 {[%clk 0:01:37.2]} 20... g6 {[%clk
0:01:50.6]} 21. Nd2 {[%clk 0:01:22.7]} 21... Re5 {[%clk 0:01:27.4]} 22. g3
{[%clk 0:01:18.7]} 22... h5 {[%clk 0:01:21.6]} 23. Nb3 {[%clk 0:01:18.3]} 23...
Bd6 {[%clk 0:01:13.6]} 24. Na5 {[%clk 0:01:14.5]} 24... Ba8 {[%clk 0:01:13.7]}
25. Qa4 {[%clk 0:01:12.7]} 25... Bc7 {[%clk 0:00:58.2]} 26. Bd3 {[%clk
0:00:50.6]} 26... c4 {[%clk 0:00:54.9]} 27. Bf1 {[%clk 0:00:38.1]} 27... Qa6
{[%clk 0:00:51.5]} 28. Bxc4 {[%clk 0:00:21.4]} 28... Qxa5 {[%clk 0:00:42.3]} 29.
Qxa5 {[%clk 0:00:21.6]} 29... Bxa5 {[%clk 0:00:44.2]} 30. Bf1 {[%clk 0:00:22]}
30... Rc8 {[%clk 0:00:37.8]} 31. c4 {[%clk 0:00:22.6]} 31... dxc4 {[%clk
0:00:35.8]} 32. Rxc4 {[%clk 0:00:22.3]} 32... Rxc4 {[%clk 0:00:34.9]} 33. Bxc4
{[%clk 0:00:23]} 33... Rc5 {[%clk 0:00:35.5]} 34. Bf1 {[%clk 0:00:22.2]} 34...
Bf3 {[%clk 0:00:34.8]} 35. Rd7 {[%clk 0:00:21.6]} 35... Bb6 {[%clk 0:00:30.9]}
0-1